bitfinex/quotes_BTCUSD_20220226
["timestamp","ask_amount","ask_price","bid_price","bid_amount"]
[1645882297536,0.0042,39176.0,39173.0,0.14468217]
[1645882298738,0.0022,39176.0,39173.0,0.14468217]
[1645882300239,0.0022,39176.0,39175.0,0.15307033]
[1645882301487,0.0052,39176.0,39175.0,0.15307033]
[1645882302787,0.0022,39176.0,39175.0,0.15307033]
[1645882303188,0.0022,39176.0,39173.0,0.14468217]
[1645882303391,0.0042,39176.0,39173.0,0.14468217]
[1645882304742,0.0022,39176.0,39173.0,0.14468217]
[1645882306442,0.066069,39176.0,39172.0,0.15338367]
[1645882306643,0.366069,39176.0,39172.0,0.15338367]
[1645882306842,0.066069,39176.0,39172.0,0.00031334]
[1645882307042,0.066069,39176.0,39169.0,0.15307033]
[1645882307245,0.0514,39175.0,39172.0,0.00031334]
[1645882307547,0.2512,39175.0,39172.0,0.00031334]
[1645882308143,0.2512,39175.0,39170.0,0.14483554]
[1645882308144,0.0514,39175.0,39170.0,0.14483554]
[1645882308345,0.0514,39175.0,39172.0,0.00031334]
[1645882309491,0.0514,39175.0,39170.0,0.14483554]
[1645882309691,0.1022,39176.0,39172.0,0.00031334]
[1645882310100,0.0022,39176.0,39172.0,0.00031334]
[1645882310493,0.0022,39176.0,39170.0,0.14483554]
[1645882310695,0.0022,39176.0,39172.0,0.00031334]
[1645882311493,0.0032,39176.0,39172.0,0.00031334]
[1645882311694,0.0032,39176.0,39170.0,0.14483554]
[1645882311895,0.0032,39176.0,39172.0,0.00031334]
[1645882312339,0.00281385,39176.0,39172.0,0.00031334]
[1645882312746,0.00181385,39176.0,39172.0,0.00031334]
[1645882312938,0.00181385,39176.0,39170.0,0.14483554]
[1645882313140,0.00181385,39176.0,39172.0,0.00031334]
[1645882313541,0.00281385,39176.0,39172.0,0.00031334]
[1645882314142,0.00281385,39176.0,39170.0,0.14483554]
[1645882314345,0.00281385,39176.0,39172.0,0.00031334]
[1645882314744,0.00181385,39176.0,39172.0,0.00031334]
[1645882315144,0.0011,39176.0,39172.0,0.00031334]
[1645882315348,0.0011,39176.0,39170.0,0.14483554]
[1645882315544,0.0011,39176.0,39172.0,0.00031373]
[1645882316587,0.0011,39176.0,39170.0,0.14483554]
[1645882316888,0.0011,39176.0,39172.0,0.00031373]
[1645882317791,0.0011,39176.0,39170.0,0.14483554]
[1645882318094,0.0011,39176.0,39172.0,0.00031373]
[1645882318989,0.0011,39176.0,39170.0,0.14483554]
[1645882319190,0.0011,39176.0,39172.0,0.00031332]
[1645882319590,0.0031,39176.0,39172.0,0.00031332]
[1645882320139,0.0031,39176.0,39170.0,0.14483554]
[1645882320339,0.0031,39176.0,39175.0,0.15307033]
[1645882320840,0.0011,39176.0,39175.0,0.15307033]
[1645882321039,0.1182763,39176.0,39175.0,0.0412846]
[1645882321642,0.1212763,39176.0,39175.0,0.0412846]
[1645882322443,0.1212763,39176.0,39172.0,0.0414442]
[1645882322643,0.1212763,39176.0,39172.0,0.0412846]
[1645882322644,0.1171763,39175.0,39172.0,0.0412846]
[1645882322842,0.1171763,39174.0,39172.0,0.04144431]
[1645882323041,0.1171763,39173.0,39172.0,0.04144431]
[1645882323245,0.11686986,39173.0,39172.0,0.04144431]
[1645882323895,0.11686986,39173.0,39172.0,0.0412846]
[1645882325101,0.41686986,39173.0,39171.0,0.0003136]
[1645882325304,0.3,39172.0,39171.0,0.0003136]
[1645882325503,0.3514,39172.0,39171.0,0.0003136]
[1645882325705,0.78285298,39172.0,39171.0,0.0003136]
[1645882326007,0.3514,39172.0,39171.0,0.0003136]
[1645882326201,0.4514,39172.0,39161.0,0.1568846]
[1645882326402,0.3236538,39163.0,39161.0,0.1568846]
[1645882326602,0.3775961,39164.0,39162.0,0.16642927]
[1645882327001,0.3775961,39164.0,39161.0,0.0412846]
[1645882327465,0.3775961,39163.0,39161.0,0.0412846]
[1645882327659,0.3775961,39163.0,39161.0,0.04160456]
[1645882328665,0.3775961,39163.0,39161.0,0.0412846]
[1645882330362,0.3775961,39164.0,39161.0,0.0412846]
[1645882330764,0.3775961,39163.0,39161.0,0.0412846]
[1645882331200,0.3775961,39163.0,39161.0,0.04159808]
[1645882331596,0.3805961,39163.0,39161.0,0.04159808]
[1645882332197,0.3805961,39163.0,39162.0,6.532e-05]
[1645882332596,0.003,39163.0,39162.0,6.532e-05]
[1645882332796,0.3775961,39163.0,39162.0,6.532e-05]
[1645882333398,0.3775961,39164.0,39162.0,6.532e-05]
[1645882333701,0.3775961,39164.0,39163.0,0.14964636]
[1645882337553,0.3775961,39165.0,39163.0,0.14964636]
[1645882338695,0.3775961,39165.0,39162.0,0.00037921]
[1645882339297,0.3775961,39165.0,39162.0,6.532e-05]
[1645882339497,0.3775961,39165.0,39162.0,0.00037922]
[1645882339698,0.29848602,39165.0,39163.0,0.16551882]
[1645882341199,0.29848602,39165.0,39162.0,0.00037922]
[1645882341406,0.32353702,39163.0,39162.0,0.00037922]
[1645882341801,0.30148602,39165.0,39162.0,6.532e-05]
[1645882342002,0.323536,39163.0,39162.0,6.532e-05]
[1645882342245,0.30148602,39165.0,39162.0,6.532e-05]
[1645882342445,0.32353477,39163.0,39162.0,6.532e-05]
[1645882342645,0.30148602,39165.0,39162.0,6.532e-05]
[1645882342846,0.32353231,39163.0,39162.0,6.532e-05]
[1645882343045,0.29848602,39165.0,39162.0,6.532e-05]
[1645882343248,0.32353245,39163.0,39162.0,0.00037922]
[1645882343447,0.29848602,39165.0,39162.0,0.00037922]
[1645882343646,0.32353066,39163.0,39162.0,0.00037922]
[1645882344247,0.29348602,39165.0,39162.0,6.532e-05]
[1645882344450,0.32352911,39163.0,39162.0,6.532e-05]
[1645882345649,0.3,39165.0,39162.0,6.532e-05]
[1645882345849,0.13692403,39168.0,39162.0,6.532e-05]
[1645882346100,0.36405341,39167.0,39162.0,6.532e-05]
[1645882346301,0.06405341,39166.0,39162.0,6.532e-05]
[1645882346704,0.3,39165.0,39163.0,0.00031389]
[1645882346900,0.103,39168.0,39163.0,0.00031389]
[1645882346901,0.3,39167.0,39163.0,0.00031389]
[1645882347100,0.07716024,39166.0,39163.0,0.00031389]
[1645882347305,0.07716024,39165.0,39163.0,0.00031389]
[1645882347502,0.29930432,39167.0,39163.0,0.00031389]
[1645882347702,0.07717158,39166.0,39162.0,6.532e-05]
[1645882347904,0.07717158,39166.0,39162.0,0.00037921]
[1645882348903,0.07717158,39166.0,39162.0,6.532e-05]
[1645882349103,0.07717158,39166.0,39162.0,0.00037921]
[1645882349747,0.08017158,39166.0,39162.0,0.00037921]
[1645882349949,0.07717158,39165.0,39162.0,0.00037921]
[1645882350148,0.07717158,39165.0,39162.0,6.532e-05]
[1645882350348,0.07717158,39165.0,39162.0,0.00037921]
[1645882350551,0.37746607,39164.0,39162.0,0.00037921]
[1645882350750,0.37746607,39163.0,39162.0,0.00037921]
[1645882351150,0.35,39167.0,39162.0,0.00037921]
[1645882351350,0.37747271,39163.0,39162.0,6.532e-05]
[1645882351551,0.38147271,39163.0,39162.0,6.532e-05]
[1645882351954,0.004,39163.0,39162.0,6.532e-05]
[1645882352952,0.37747271,39164.0,39162.0,6.532e-05]
[1645882353353,0.37747271,39165.0,39162.0,6.532e-05]
[1645882353598,0.003,39164.0,39162.0,6.532e-05]
[1645882354000,0.003,39164.0,39162.0,0.00037922]
[1645882354802,0.37747271,39165.0,39162.0,0.00037922]
[1645882355001,0.37747271,39165.0,39162.0,6.532e-05]
[1645882356202,0.05,39168.0,39162.0,6.532e-05]
[1645882356403,0.003,39170.0,39162.0,0.00037922]
[1645882356704,0.003,39170.0,39167.0,0.04096963]
[1645882356903,0.2499,39174.0,39167.0,0.04096963]
[1645882357349,0.5499,39174.0,39167.0,0.04096963]
[1645882357751,0.5519,39174.0,39167.0,0.04096963]
[1645882358547,0.6519,39174.0,39167.0,0.04096963]
[1645882358749,0.6519,39174.0,39169.0,0.00031412]
[1645882358950,0.063875,39173.0,39169.0,0.00031412]
[1645882359149,0.3,39172.0,39169.0,0.00031412]
[1645882359348,0.35,39172.0,39169.0,0.00031412]
[1645882359754,0.35,39172.0,39163.0,0.04096963]
[1645882359949,0.35,39172.0,39169.0,0.00031412]
[1645882360550,0.3,39172.0,39169.0,0.00031412]
[1645882360993,0.3,39172.0,39167.0,0.04096963]
[1645882361193,0.3,39172.0,39169.0,0.00031412]
[1645882362098,0.3,39172.0,39167.0,0.04096963]
[1645882362297,0.3,39172.0,39169.0,0.00037881]
[1645882363395,0.3,39172.0,39169.0,6.47e-05]
[1645882363595,0.301,39172.0,39169.0,0.00037881]
[1645882364596,0.301,39172.0,39169.0,6.47e-05]
[1645882364850,0.3,39172.0,39169.0,0.00037881]
[1645882365747,0.302,39172.0,39169.0,6.47e-05]
[1645882365944,0.302,39172.0,39169.0,0.00037881]
[1645882366845,0.3,39172.0,39169.0,0.00037881]
[1645882367047,0.3,39172.0,39169.0,6.47e-05]
[1645882367246,0.3,39172.0,39169.0,0.00037881]
[1645882367647,0.301,39172.0,39169.0,0.00037881]
[1645882368246,0.301,39172.0,39169.0,6.47e-05]
[1645882368496,0.301,39172.0,39169.0,0.00037881]
[1645882368698,0.401,39172.0,39169.0,0.00037881]
[1645882368896,0.4,39172.0,39169.0,0.00037881]
[1645882369099,0.4,39172.0,39169.0,0.00012308]
[1645882369497,0.4,39172.0,39164.0,0.04096963]
[1645882369897,0.35,39172.0,39157.0,0.30124152]
[1645882370102,0.35,39172.0,39165.0,0.04096963]
[1645882370298,0.35,39172.0,39163.0,0.04096963]
[1645882370299,0.4,39172.0,39163.0,0.04096963]
[1645882372344,0.4,39172.0,39170.0,6.46e-05]
[1645882372545,0.3,39171.0,39170.0,6.46e-05]
[1645882373744,0.302,39171.0,39170.0,6.46e-05]
[1645882374948,0.3,39171.0,39170.0,6.46e-05]
[1645882375747,0.302,39171.0,39170.0,6.46e-05]
[1645882377001,0.3,39171.0,39170.0,6.46e-05]
[1645882377199,0.3,39171.0,39164.0,0.04096963]
[1645882378004,0.3,39171.0,39166.0,0.00033781]
[1645882379102,0.3,39171.0,39164.0,0.04096963]
[1645882379304,0.3,39171.0,39167.0,0.00033781]
[1645882380049,0.1,39172.0,39167.0,0.00033781]
[1645882380251,0.1,39172.0,39158.0,0.01021]
[1645882380252,0.3,39171.0,39165.0,0.04096963]
[1645882380448,0.3,39171.0,39167.0,0.00033781]
[1645882381453,0.3,39171.0,39165.0,0.04096963]
[1645882381455,0.12935566,39170.0,39165.0,0.03224421]
[1645882381650,0.12935566,39170.0,39167.0,0.00033781]
[1645882381949,0.12935566,39170.0,39167.0,0.03258202]
[1645882382349,0.12935566,39170.0,39167.0,0.00033781]
[1645882382549,0.12935566,39170.0,39167.0,0.03224421]
[1645882383252,0.43153955,39172.0,39167.0,0.03224421]
[1645882383253,0.12935566,39169.0,39167.0,0.03224421]
[1645882383498,0.12935566,39168.0,39165.0,0.03224421]
[1645882383702,0.12935566,39167.0,39158.0,0.31021]
[1645882383901,0.26971435,39160.0,39159.0,0.377465]
[1645882384100,0.26971435,39160.0,39159.0,0.40970921]
[1645882384306,0.26471435,39160.0,39159.0,0.40970921]
[1645882384702,0.26471435,39160.0,39159.0,0.70970921]
[1645882385401,0.26471435,39160.0,39159.0,0.40970921]
[1645882385601,0.26471435,39160.0,39159.0,0.41070921]
[1645882386204,0.32365723,39162.0,39159.0,0.41070921]
[1645882386802,0.32365723,39162.0,39159.0,0.378465]
[1645882387002,0.32365723,39162.0,39161.0,0.03224421]
[1645882387247,0.32365723,39162.0,39161.0,0.40970921]
[1645882389448,0.3776001,39164.0,39161.0,0.40970921]
[1645882389449,0.32365723,39163.0,39161.0,0.40970921]
[1645882389647,0.32365723,39163.0,39161.0,0.03224421]
[1645882390249,0.32365723,39163.0,39162.0,0.377465]
[1645882390452,0.3776001,39165.0,39161.0,0.03224421]
[1645882390650,0.32366018,39163.0,39160.0,0.00033806]
[1645882390852,0.32366018,39162.0,39161.0,0.40970921]
[1645882391895,0.32366018,39162.0,39161.0,0.03224421]
[1645882392095,0.32366018,39162.0,39161.0,0.40970921]
[1645882392697,0.3776001,39163.0,39161.0,0.03224421]
[1645882392897,0.32367243,39162.0,39161.0,0.40970921]
[1645882395162,0.3776001,39164.0,39161.0,0.40970921]
[1645882395362,0.3776001,39163.0,39161.0,0.03224421]
[1645882395862,0.3806001,39164.0,39161.0,0.03224421]
[1645882396262,0.3806001,39164.0,39161.0,0.40970921]
[1645882396263,0.3236921,39162.0,39161.0,0.40970921]
[1645882396562,0.3806001,39164.0,39161.0,0.03224421]
[1645882396762,0.32369159,39162.0,39161.0,0.03224421]
[1645882396963,0.32369159,39162.0,39161.0,0.40970921]
[1645882397163,0.32369159,39162.0,39161.0,0.41004727]
[1645882397464,0.3776001,39164.0,39161.0,0.41004727]
[1645882397666,0.32368951,39165.0,39161.0,1.70291727]
[1645882397864,0.32368951,39166.0,39165.0,0.03224421]
[1645882398065,0.32368951,39167.0,39165.0,0.40970921]
[1645882399507,0.32368951,39168.0,39165.0,0.40970921]
[1645882399709,0.32368951,39168.0,39165.0,0.41070921]
[1645882400907,0.32368951,39168.0,39165.0,0.41004725]
[1645882401310,0.32368951,39167.0,39165.0,0.41004725]
[1645882401506,0.3776001,39170.0,39165.0,0.41004725]
[1645882401507,0.32368951,39168.0,39165.0,0.41004725]
[1645882401708,0.32468951,39168.0,39165.0,0.41004725]
[1645882401910,0.001,39168.0,39165.0,0.40970921]
[1645882402115,0.32368951,39170.0,39167.0,1.15]
[1645882402371,0.10774513,39176.0,39169.0,1.19400921]
[1645882402372,0.32368951,39172.0,39169.0,1.19400921]
[1645882402571,0.32368951,39175.0,39172.0,0.377465]
[1645882402770,0.32368951,39175.0,39174.0,0.377465]
[1645882402966,0.32478951,39176.0,39174.0,0.40260408]
[1645882403167,0.32478951,39176.0,39174.0,0.5673375]
[1645882403569,0.0011,39176.0,39174.0,0.5673375]
[1645882405367,0.0011,39176.0,39174.0,0.33649408]
[1645882405868,0.32368951,39175.0,39174.0,0.33649408]
[1645882406507,0.32478951,39176.0,39174.0,0.33649408]
[1645882407105,0.0011,39176.0,39174.0,0.33649408]
[1645882409866,0.00092779,39176.0,39174.0,0.33649408]
[1645882411471,0.00092779,39176.0,39174.0,0.40220408]
[1645882411778,0.00092779,39176.0,39175.0,1.161765]
[1645882412171,0.00092779,39176.0,39175.0,1.187415]
[1645882412372,0.00092779,39176.0,39175.0,1.161765]
[1645882412574,0.00092779,39176.0,39175.0,0.377465]
[1645882412974,0.00092779,39176.0,39175.0,1.213165]
[1645882414007,0.00092779,39176.0,39175.0,1.239815]
[1645882414207,2.779e-05,39177.0,39176.0,1.161706]
[1645882414414,2.779e-05,39177.0,39176.0,1.461706]
[1645882414609,0.0011,39180.0,39176.0,1.59395021]
[1645882414610,0.00012779,39180.0,39176.0,1.59395021]
[1645882414810,0.0043,39197.0,39182.0,0.7843]
[1645882414811,0.00061557,39187.0,39182.0,0.7843]
[1645882415011,0.00061557,39187.0,39186.0,1.161706]
[1645882415211,0.37806123,39192.0,39189.0,0.403056]
[1645882415212,0.32319534,39191.0,39189.0,0.403056]
[1645882415513,0.37926123,39193.0,39189.0,0.403056]
[1645882415514,0.0022,39193.0,39192.0,1.186946]
[1645882415710,0.0022,39193.0,39192.0,1.315156]
[1645882415914,0.0022,39193.0,39192.0,1.415156]
[1645882416510,0.0021,39196.0,39192.0,1.415156]
[1645882416712,0.0021,39196.0,39195.0,1.21919021]
[1645882416916,0.0021,39196.0,39195.0,1.27059021]
[1645882417252,0.0021,39196.0,39195.0,1.24494021]
[1645882418052,0.0021,39196.0,39195.0,1.24894021]
[1645882418253,0.00115454,39197.0,39196.0,1.527406]
[1645882418452,0.00115454,39197.0,39196.0,2.412696]
[1645882418652,0.0032,39201.0,39200.0,1.161296]
[1645882418853,0.0032,39201.0,39200.0,1.461296]
[1645882419053,0.0032,39201.0,39200.0,1.161296]
[1645882419457,0.0432,39203.0,39202.0,1.427406]
[1645882419653,0.0432,39203.0,39202.0,0.377406]
[1645882420855,0.0432,39203.0,39202.0,1.161706]
[1645882421126,0.0432,39203.0,39201.0,0.03224421]
[1645882421326,0.0432,39203.0,39202.0,0.377406]
[1645882421524,0.04125485,39203.0,39202.0,0.377406]
[1645882421926,0.04125485,39203.0,39202.0,0.381406]
[1645882423829,0.04125485,39203.0,39202.0,1.161706]
[1645882424029,0.04125485,39203.0,39202.0,1.164706]
[1645882424431,0.04125485,39203.0,39202.0,0.380406]
[1645882425277,0.04125485,39203.0,39198.0,0.0514]
[1645882425478,0.04125485,39203.0,39193.0,0.1293]
[1645882425479,0.04125485,39203.0,39193.0,0.1191]
[1645882425678,0.04125485,39203.0,39190.0,0.2611]
[1645882425679,0.18444264,39202.0,39190.0,0.2611]
[1645882425879,0.092387,39201.0,39185.0,0.1195]
[1645882426083,0.040987,39195.0,39193.0,0.002]
[1645882426279,0.392387,39194.0,39193.0,0.002]
[1645882426679,0.442387,39194.0,39193.0,0.002]
[1645882426879,0.54238699,39194.0,39193.0,0.002]
[1645882427079,0.442387,39194.0,39193.0,0.002]
[1645882427284,0.442387,39194.0,39187.0,0.17266852]
[1645882427285,0.0514,39194.0,39187.0,0.17266852]
[1645882427478,0.05,39196.0,39187.0,0.17266852]
[1645882427679,0.3,39195.0,39187.0,0.17266852]
[1645882428080,0.30115427,39199.0,39187.0,0.17466852]
[1645882428279,0.35115427,39199.0,39187.0,0.20691273]
[1645882428508,0.351,39199.0,39187.0,0.03424421]
[1645882428708,0.35070547,39199.0,39187.0,0.03424421]
[1645882428909,0.45070546,39199.0,39187.0,0.002]
[1645882429108,0.040987,39198.0,39187.0,0.002]
[1645882429308,0.040987,39196.0,39184.0,0.03224421]
[1645882429509,0.340987,39195.0,39181.0,0.17248901]
[1645882429709,0.3,39195.0,39181.0,0.22248901]
[1645882430109,0.040987,39194.0,39184.0,0.002]
[1645882430311,0.3,39193.0,39184.0,0.002]
[1645882430511,0.040987,39194.0,39184.0,0.002]
[1645882430711,0.040987,39192.0,39184.0,0.002]
[1645882430911,0.3,39191.0,39184.0,0.002]
[1645882431112,0.040987,39194.0,39184.0,0.002]
[1645882431312,0.3,39193.0,39184.0,0.002]
[1645882431511,0.040987,39194.0,39184.0,0.002]
[1645882431712,0.3,39193.0,39184.0,0.002]
[1645882432011,0.3,39195.0,39184.0,0.002]
[1645882433458,0.3,39195.0,39181.0,0.20473322]
[1645882434057,0.3,39195.0,39181.0,0.20773322]
[1645882435360,0.29362146,39195.0,39181.0,0.20473322]
[1645882435761,0.29362146,39195.0,39184.0,0.03224421]
[1645882436210,0.29362146,39195.0,39183.0,0.03224421]
[1645882437013,0.3,39198.0,39183.0,0.03224421]
[1645882437214,0.35126407,39198.0,39183.0,0.03224421]
[1645882437712,0.35126407,39198.0,39188.0,0.17723834]
[1645882438212,0.35,39198.0,39188.0,0.17723834]
[1645882438412,0.3,39198.0,39188.0,0.17723834]
[1645882438813,0.3,39198.0,39185.0,0.03224421]
[1645882439215,0.3,39198.0,39184.0,0.03224421]
[1645882440065,0.301,39198.0,39184.0,0.03224421]
[1645882441062,0.301,39198.0,39182.0,0.3]
[1645882441063,0.351,39198.0,39182.0,0.3]
[1645882441263,0.14999999,39197.0,39181.0,0.19756396]
[1645882441464,0.28575979,39196.0,39181.0,0.19756396]
[1645882441663,0.28575979,39196.0,39181.0,0.98186396]
[1645882441864,0.28575979,39196.0,39182.0,0.3]
[1645882442062,0.040987,39195.0,39187.0,0.1581347]
[1645882442262,0.040987,39196.0,39187.0,0.1581347]
[1645882443363,0.28568031,39198.0,39187.0,0.1581347]
[1645882443609,0.20138167,39199.0,39187.0,0.1581347]
[1645882443808,0.30138167,39199.0,39187.0,0.1581347]
[1645882444009,0.2998,39199.0,39187.0,0.1581347]
[1645882444208,0.30011634,39199.0,39187.0,0.1591347]
[1645882444608,0.20011634,39199.0,39187.0,0.1591347]
[1645882444808,0.00031634,39199.0,39188.0,0.03224421]
[1645882445012,0.00031634,39199.0,39189.0,0.40965021]
[1645882445214,0.04225485,39203.0,39191.0,0.03224421]
[1645882445407,0.04125485,39203.0,39191.0,0.03224421]
[1645882445612,0.00031634,39199.0,39191.0,0.03224421]
[1645882445811,0.00031634,39199.0,39192.0,0.377406]
[1645882446013,0.00031634,39199.0,39191.0,0.03224421]
[1645882446014,0.00031634,39199.0,39191.0,0.001]
[1645882446413,0.040987,39198.0,39191.0,0.001]
[1645882446613,0.49501209,39202.0,39191.0,0.001]
[1645882446614,0.040987,39195.0,39191.0,0.001]
[1645882446914,0.040987,39193.0,39191.0,0.001]
[1645882447111,0.0514,39192.0,39191.0,0.001]
[1645882447363,0.43699935,39192.0,39178.0,0.0102]
[1645882447564,0.040987,39187.0,39178.0,0.0102]
[1645882447766,0.040987,39185.0,39178.0,0.0102]
[1645882447961,0.040987,39183.0,39178.0,0.0102]
[1645882448562,0.0514,39184.0,39178.0,0.0102]
[1645882449163,0.0514,39184.0,39178.0,0.136703]
[1645882449964,0.0514,39184.0,39178.0,0.137703]
[1645882451012,0.0514,39184.0,39178.0,0.127503]
[1645882451411,0.0514,39184.0,39178.0,0.126503]
[1645882452011,0.0524,39184.0,39175.0,0.00033664]
[1645882452712,0.0524,39184.0,39175.0,0.00033663]
[1645882453111,0.0524,39184.0,39176.0,0.16432922]
[1645882453312,0.0514,39184.0,39176.0,0.16432922]
[1645882453913,0.0064,39184.0,39176.0,0.16432922]
[1645882454113,0.0074,39184.0,39176.0,0.16432922]
[1645882454764,0.0024,39184.0,39176.0,0.16432922]
[1645882455364,0.0014,39184.0,39176.0,0.16432922]
[1645882456063,0.0024,39184.0,39176.0,0.16432922]
[1645882457267,0.0014,39184.0,39176.0,0.16432922]
[1645882458171,0.001,39189.0,39177.0,0.3]
[1645882459018,0.001,39189.0,39182.0,0.13020106]
[1645882459219,0.1,39191.0,39182.0,0.13020106]
[1645882459421,0.040987,39190.0,39182.0,0.13020106]
[1645882460019,0.041987,39190.0,39182.0,0.13020106]
[1645882461121,0.001,39190.0,39182.0,0.13020106]
[1645882461323,0.05,39191.0,39182.0,0.13020106]
[1645882461720,0.040987,39190.0,39182.0,0.13020106]
[1645882461922,0.040987,39192.0,39182.0,0.13020106]
[1645882462122,0.09999999,39191.0,39182.0,0.13220106]
[1645882462360,0.040987,39190.0,39182.0,0.13220106]
[1645882463370,0.040987,39190.0,39182.0,0.13020106]
[1645882464161,0.041987,39190.0,39182.0,0.13020106]
[1645882464662,0.041987,39190.0,39178.0,0.1125]
[1645882464866,0.1998,39184.0,39177.0,0.0112]
[1645882465066,0.1998,39184.0,39177.0,0.001]
[1645882465067,0.040987,39181.0,39177.0,0.001]
[1645882465266,0.040987,39179.0,39177.0,0.001]
[1645882465464,0.392387,39178.0,39177.0,0.001]
[1645882465665,0.392387,39178.0,39175.0,0.00031432]
[1645882465666,0.040987,39177.0,39175.0,0.00031432]
[1645882466026,0.040987,39175.0,39170.0,0.57547965]
[1645882466216,0.0514,39174.0,39170.0,0.57547965]
[1645882466420,0.040987,39173.0,39170.0,0.57547965]
[1645882466617,0.45139999,39172.0,39170.0,0.57547965]
[1645882466819,0.340987,39171.0,39170.0,0.57547965]
[1645882467116,0.692287,39171.0,39170.0,0.57547965]
[1645882467315,0.392287,39171.0,39170.0,0.57547965]
[1645882467524,0.092387,39171.0,39170.0,0.51547965]
[1645882467717,0.0514,39171.0,39170.0,0.51547965]
[1645882467914,0.092387,39171.0,39170.0,0.51547965]
[1645882468118,0.390987,39171.0,39170.0,0.51547965]
[1645882468319,0.59238699,39171.0,39170.0,0.51547965]
[1645882468521,0.192387,39171.0,39170.0,0.51547965]
[1645882469317,0.187387,39171.0,39170.0,0.51547965]
[1645882470564,0.18725414,39171.0,39170.0,0.51547965]
[1645882470765,0.092387,39171.0,39170.0,0.51547965]
[1645882471966,0.092387,39171.0,39170.0,0.47547965]
[1645882472869,0.040987,39171.0,39170.0,0.47547965]
[1645882476616,0.3,39176.0,39170.0,0.47547965]
[1645882476617,0.040987,39176.0,39170.0,0.47547965]
[1645882476816,0.05,39177.0,39170.0,0.47547965]
[1645882477118,0.040987,39175.0,39170.0,0.47547965]
[1645882477367,0.040987,39174.0,39170.0,0.47547965]
[1645882477568,0.040987,39175.0,39170.0,0.47547965]
[1645882477974,0.340987,39175.0,39170.0,0.47547965]
[1645882478170,0.340987,39175.0,39171.0,0.00029553]
[1645882478773,0.341987,39175.0,39171.0,0.00029553]
[1645882478971,0.1998,39173.0,39171.0,0.00029553]
[1645882479170,0.340987,39172.0,39170.0,0.47547965]
[1645882479371,0.404865,39171.0,39170.0,0.47547965]
[1645882479572,0.504865,39171.0,39170.0,0.47547965]
[1645882480775,0.704665,39171.0,39170.0,0.47547965]
[1645882481617,0.80466499,39171.0,39170.0,0.47547965]
[1645882481816,0.85606499,39171.0,39170.0,0.47547965]
[1645882482618,0.85606499,39171.0,39170.0,0.47047965]
[1645882483019,0.756065,39171.0,39170.0,0.47047965]
[1645882484023,0.85606499,39171.0,39170.0,0.47047965]
[1645882484619,0.756065,39171.0,39170.0,0.47047965]
[1645882485065,0.85606499,39171.0,39170.0,0.47047965]
[1645882485667,0.756065,39171.0,39170.0,0.47047965]
[1645882485865,0.756065,39171.0,39169.0,0.00031373]
[1645882485866,0.290887,39170.0,39169.0,0.00031373]
[1645882486067,0.642287,39170.0,39169.0,0.00031373]
[1645882486572,0.642287,39170.0,39160.0,0.05]
[1645882486768,0.642287,39170.0,39168.0,0.00031374]
[1645882486967,0.340987,39169.0,39168.0,0.00031374]
[1645882487768,0.040987,39168.0,39158.0,0.15286527]
[1645882487969,0.3,39167.0,39158.0,0.14943417]
[1645882488171,0.040987,39166.0,39158.0,0.01021]
[1645882488369,0.040987,39163.0,39158.0,0.01021]
[1645882488614,0.340987,39163.0,39158.0,0.01021]
[1645882489219,0.3,39163.0,39158.0,0.01021]
[1645882489413,0.2998,39164.0,39158.0,0.01021]
[1645882489614,0.3512,39164.0,39158.0,0.01021]
[1645882489813,0.040987,39163.0,39158.0,0.01021]
[1645882490012,0.3512,39164.0,39158.0,0.01021]
[1645882490214,0.3512,39164.0,39160.0,0.14509284]
[1645882490414,0.040987,39163.0,39160.0,0.14509284]
[1645882490815,0.2998,39164.0,39160.0,0.14509284]
[1645882491214,0.040987,39163.0,39160.0,0.14509284]
[1645882491417,0.1998,39164.0,39160.0,0.14509284]
[1645882492662,0.1998,39164.0,39161.0,0.377406]
[1645882492863,0.20013571,39164.0,39161.0,0.377406]
[1645882493264,0.20013571,39164.0,39162.0,0.377406]
[1645882493763,0.1998,39164.0,39162.0,0.377406]
[1645882495466,0.1998,39164.0,39160.0,0.14509284]
[1645882495665,0.1998,39164.0,39161.0,0.377406]
[1645882496221,0.1998,39164.0,39160.0,0.14509284]
[1645882496420,0.20011311,39164.0,39160.0,0.14509284]
[1645882497224,0.1998,39164.0,39160.0,0.14509284]
[1645882497422,0.1998,39164.0,39161.0,0.377406]
[1645882497622,0.20011311,39164.0,39161.0,0.377406]
[1645882498022,0.00031311,39164.0,39161.0,0.377406]
[1645882498422,0.001,39169.0,39161.0,0.377406]
[1645882498623,0.001,39169.0,39160.0,0.14509284]
[1645882498823,0.00031311,39164.0,39161.0,0.377406]
[1645882499423,0.00031311,39164.0,39160.0,0.14509284]
[1645882499626,0.001,39169.0,39160.0,0.14509284]
[1645882499862,0.3,39171.0,39160.0,0.14509284]
[1645882499863,0.040987,39170.0,39160.0,0.14509284]
[1645882500062,0.00031463,39164.0,39160.0,0.14509284]
[1645882500864,0.3,39171.0,39166.0,0.00094388]
[1645882501063,0.040987,39170.0,39166.0,0.00094388]
[1645882501262,0.040987,39168.0,39166.0,0.00094388]
[1645882502063,0.340987,39167.0,39166.0,0.00094388]
[1645882502863,0.34089076,39167.0,39166.0,0.00094388]
[1645882503264,0.040987,39167.0,39166.0,0.00094388]
[1645882504220,0.04041633,39167.0,39166.0,0.00094388]
[1645882504419,0.35,39171.0,39166.0,0.00094388]
[1645882504619,0.040178,39170.0,39166.0,0.17777835]
[1645882505020,0.00031475,39168.0,39166.0,0.17777835]
[1645882505220,0.00031475,39168.0,39166.0,0.00094388]
[1645882505422,0.040178,39167.0,39166.0,0.00094388]
[1645882506021,0.05031475,39169.0,39166.0,0.00094388]
[1645882506222,0.00031475,39169.0,39166.0,0.00094388]
[1645882507022,0.2499,39172.0,39166.0,0.00094388]
[1645882507261,0.0003145,39169.0,39167.0,0.13780847]
[1645882508161,0.2499,39172.0,39167.0,0.13780847]
[1645882508462,0.002,39169.0,39167.0,0.13780847]
[1645882509863,0.0003145,39170.0,39167.0,0.13780847]
[1645882510463,0.001,39170.0,39167.0,0.13780847]
[1645882510662,0.00131451,39170.0,39167.0,0.13780847]
[1645882511615,0.001,39170.0,39167.0,0.13780847]
[1645882511816,0.2499,39172.0,39167.0,0.13780847]